bitfinex/quotes_ETHUSD_20241101
["timestamp","ask_amount","ask_price","bid_price","bid_amount"]
[1730477593575,5.49931,2520.4,2519.7,1.5392]
[1730477593576,3.96817,2520.1,2519.7,1.5392]
[1730477593908,1.5316,2520.4,2519.4,3.9691]
[1730477593909,3.9687,2519.8,2519.4,1.617]
[1730477594210,3.96867,2519.8,2519.4,1.617]
[1730477594801,3.96856,2519.8,2519.4,1.617]
[1730477595682,3.96881,2519.7,2519.1,5.63206]
[1730477595995,3.96904,2519.5,2519.2,0.960175]
[1730477596303,3.96935,2519.4,2518.8,5.54649]
[1730477596508,3.96935,2519.4,2518.8,1.5764]
[1730477596509,3.96922,2519.4,2518.8,1.5764]
[1730477596661,3.96922,2519.4,2518.9,0.07938731]
[1730477596881,3.9691,2519.5,2518.9,3.9699]
[1730477597296,3.96943,2519.3,2518.8,1.5764]
[1730477597701,1.6357,2519.4,2518.8,1.5764]
[1730477597702,3.96974,2519.1,2518.8,1.5764]
[1730477597908,3.96974,2519.1,2518.6,1.5764]
[1730477598094,3.96947,2519.3,2518.7,4.52499]
[1730477598297,3.96895,2519.6,2518.7,0.55469]
[1730477598465,2.43138269,2520.0,2519.2,1.5764]
[1730477598667,5.60357,2520.3,2519.2,1.5764]
[1730477598873,1.21368363,2520.5,2519.9,3.96832]
[1730477598874,3.9676,2520.5,2519.9,3.96832]
[1730477599109,3.96759,2520.5,2519.9,5.54472]
[1730477599277,3.96783,2520.3,2519.9,0.07935944]
[1730477599482,3.96821,2520.1,2519.6,3.96887]
[1730477599664,3.96796,2520.2,2519.6,3.96887]
[1730477600005,7.936,2520.2,2519.7,0.07216995]
[1730477600517,3.96812,2520.1,2519.7,0.07216995]
[1730477600697,3.96796,2520.2,2519.6,0.07936734]
[1730477601012,3.96774,2520.4,2519.7,4.04088995]
[1730477601318,1.6357,2520.6,2520.0,3.96813]
[1730477601319,9.57053,2520.6,2520.0,3.96813]
[1730477601482,0.79568269,2520.9,2520.2,3.96787]
[1730477601483,3.96711,2520.8,2520.2,3.96787]
[1730477601873,3.96711,2520.8,2520.3,0.07976008]
[1730477602069,3.96711,2520.8,2520.3,0.88133209]
[1730477602301,3.96727,2520.7,2520.3,0.88133209]
[1730477602469,3.967,2520.8,2520.3,0.88133209]
[1730477602669,7.93412,2520.8,2520.3,0.88133209]
[1730477602974,3.96728,2520.7,2520.3,0.88133209]
[1730477603233,3.96731,2520.6,2520.3,0.88133209]
[1730477603628,3.967,2520.8,2520.3,0.88133209]
[1730477603942,3.96726,2520.7,2520.3,0.88133209]
[1730477604447,7.93407,2520.8,2520.3,0.88133209]
[1730477604949,3.96699,2520.8,2520.3,0.88133209]
[1730477605145,7.93413,2520.8,2520.3,0.88133209]
[1730477605346,3.96718,2520.7,2520.3,0.88133209]
[1730477605547,3.96699,2520.8,2520.3,2.43863209]
[1730477605722,3.96699,2520.8,2520.4,0.64064321]
[1730477605918,3.96699,2520.8,2520.4,0.73152507]
[1730477605919,7.93412,2520.8,2520.4,0.73152507]
[1730477606114,3.96699,2520.8,2520.4,0.73152507]
[1730477606310,4.76221269,2521.1,2520.5,3.96732]
[1730477606663,0.1,2521.2,2520.7,3.96704]
[1730477606811,4.06649,2521.2,2520.7,0.81040851]
[1730477607023,4.06649,2521.2,2520.8,0.08983201]
[1730477607466,4.06649,2521.2,2520.7,0.81040851]
[1730477607467,3.96654,2521.1,2520.7,0.81040851]
[1730477607669,3.96654,2521.1,2520.9,0.0895596]
[1730477607869,3.96654,2521.1,2520.8,0.08983201]
[1730477608025,3.96652,2521.1,2521.0,0.08928722]
[1730477608524,3.96652,2521.1,2520.6,3.96729]
[1730477608863,4.06649,2521.2,2521.0,0.08928722]
[1730477609025,4.06649,2521.2,2520.5,3.96736]
[1730477609226,3.96663,2521.1,2520.5,4.916591]
[1730477609469,3.96671,2521.0,2520.3,1.5573]
[1730477609655,5.42969,2521.0,2520.3,5.525]
[1730477609868,3.96686,2520.9,2520.4,4.04687702]
[1730477610173,3.9666,2521.1,2520.5,3.96732]
[1730477610359,3.96654,2521.1,2520.6,4.04664136]
[1730477610719,4.06637,2521.2,2520.6,4.76858714]
[1730477610972,4.06637,2521.2,2520.7,1.5907372]
[1730477610973,0.1,2521.2,2520.7,1.5907372]
[1730477611274,4.06646,2521.2,2520.7,1.5907372]
[1730477611435,4.06646,2521.2,2520.7,1.5114]
[1730477611876,3.9666,2521.1,2520.7,1.5114]
[1730477612173,3.9666,2521.1,2520.2,4.71587718]
[1730477612174,3.96706,2520.8,2520.3,1.4763]
[1730477612331,3.40666,2521.0,2519.3,4.71587718]
[1730477612532,3.96837,2520.0,2519.6,1.4763]
[1730477613030,3.96803,2520.2,2519.7,3.96862]
[1730477613345,5.51848,2520.3,2519.7,4.04795562]
[1730477613541,3.96778,2520.3,2519.7,0.07936562]
[1730477613777,3.96763,2520.4,2519.9,3.9684]
[1730477613988,0.79568269,2520.6,2520.1,1.5044]
[1730477614190,3.96738,2520.6,2520.1,5.4724]
[1730477614491,3.96719,2520.7,2520.1,1.5044]
[1730477614634,3.96719,2520.7,2520.2,3.96781]
[1730477615062,9.47714,2520.9,2520.3,4.05886438]
[1730477615262,3.96691,2520.9,2520.4,4.04689782]
[1730477615464,2.32108269,2521.1,2520.3,0.65545587]
[1730477615672,3.96717,2520.7,2520.5,0.09064937]
[1730477615887,3.96717,2520.7,2520.4,0.09092186]
[1730477616043,3.96717,2520.7,2520.6,0.09037689]
[1730477616247,3.9673,2520.6,2520.5,0.09064937]
[1730477616487,3.96716,2520.7,2520.2,0.07935054]
[1730477616785,3.96716,2520.7,2520.1,5.4724]
[1730477616786,3.96716,2520.7,2520.1,1.5044]
[1730477616988,3.96716,2520.7,2519.4,0.47158772]
[1730477616989,3.96793,2520.2,2519.8,1.5309]
[1730477617191,3.96776,2520.4,2519.9,0.07936067]
[1730477617398,3.96722,2520.7,2520.1,3.96797]
[1730477617550,3.96731,2520.6,2520.1,3.96797]
[1730477617750,3.96747,2520.5,2520.0,5.49912]
[1730477617950,3.96747,2520.5,2520.0,6.445775]
[1730477618148,3.96733,2520.6,2520.0,6.445775]
[1730477618394,3.9674,2520.6,2520.0,10.413935]
[1730477618694,3.9674,2520.6,2520.1,3.96807]
[1730477619296,3.9674,2520.6,2520.0,1.5309]
[1730477619493,3.96802,2520.2,2519.6,3.96873]
[1730477619747,3.96819,2520.1,2519.6,3.96873]
[1730477620042,3.96864,2519.8,2519.4,1.526]
[1730477620396,3.96849,2519.9,2519.4,5.49519]
[1730477620613,3.96801,2520.2,2519.7,3.96869]
[1730477620812,3.96811,2520.1,2519.6,3.96887]
[1730477622085,0.793612,2520.1,2519.4,5.49507]
[1730477622281,3.96832,2520.0,2519.5,4.04837215]
[1730477622768,4.76349269,2520.3,2519.7,3.96868]
[1730477623087,3.96788,2520.3,2519.7,3.96872]
[1730477623232,3.96788,2520.3,2519.8,3.96855]
[1730477623438,3.96788,2520.3,2519.8,7.93704]
[1730477623885,3.96788,2520.3,2519.9,3.96839]
[1730477624049,6.31446269,2520.5,2519.9,4.04774989]
[1730477624238,3.96756,2520.5,2519.9,4.37316499]
[1730477624579,3.96766,2520.4,2519.9,4.37316499]
[1730477624780,3.96766,2520.4,2519.9,8.34145499]
[1730477625071,0.79568269,2520.5,2519.9,0.40477499]
[1730477625291,1.21368363,2520.6,2520.1,5.5561]
[1730477625292,4.76312269,2520.6,2520.1,5.5561]
[1730477625441,4.76312269,2520.6,2520.1,1.5881]
[1730477625641,3.96769,2520.4,2520.2,0.09161805]
[1730477626276,4.76312269,2520.6,2520.2,0.09161805]
[1730477626476,4.76292269,2520.7,2520.2,4.05945805]
[1730477626684,5.18077363,2520.8,2520.3,4.92925281]
[1730477626685,0.79568269,2520.8,2520.3,4.92925281]
[1730477626847,0.89568269,2521.2,2520.6,3.96716]
[1730477627049,3.967,2520.8,2520.4,1.652773]
[1730477627232,3.967,2520.8,2520.7,0.09025558]
[1730477627434,3.96715,2520.7,2520.4,1.5617]
[1730477627941,3.96715,2520.7,2519.9,4.71587718]
[1730477627942,3.96715,2520.7,2520.0,1.5617]
[1730477628307,5.44983,2520.9,2520.4,3.96755]
[1730477628491,3.96693,2520.9,2520.5,3.96745]
[1730477628702,4.76229269,2521.1,2520.7,3.96711]
[1730477628842,0.79568269,2521.1,2520.7,3.96711]
[1730477629148,4.86205269,2521.2,2520.7,3.96711]
[1730477629353,3.96661,2521.1,2520.6,5.43539]
[1730477629769,3.9666,2521.1,2520.7,0.09025558]
[1730477629969,3.96667,2521.0,2520.7,0.09025558]
[1730477630805,3.96685,2520.9,2520.7,0.09025558]
[1730477631102,3.96669,2521.0,2520.7,0.09025558]
[1730477632190,3.96685,2520.9,2520.7,0.09025558]
[1730477632495,5.08829361,2521.0,2520.7,0.09025558]
[1730477632796,5.8839763,2521.0,2520.8,0.08988986]
[1730477633002,5.08829361,2521.0,2520.8,0.08988986]
[1730477633158,5.08829361,2521.0,2520.5,3.96746]
[1730477633364,4.76237269,2521.0,2520.9,0.08961745]
[1730477633568,4.76237269,2521.0,2520.3,5.52119]
[1730477633569,3.96698,2520.9,2520.3,5.52119]
[1730477633915,4.77794664,2520.9,2520.4,3.96759]
[1730477634094,4.77794664,2520.9,2520.4,4.05856971]
[1730477634676,0.81096664,2520.9,2520.8,1.5699]
[1730477635018,0.91096664,2521.2,2521.0,3.96667]
[1730477635320,0.1,2521.2,2521.1,4.04584922]
[1730477635480,0.1,2521.2,2521.1,4.0555927]
[1730477635679,0.1,2521.2,2521.1,4.5851569]
[1730477636190,0.1,2521.2,2521.1,6.21557721]
[1730477636589,0.1,2521.2,2521.1,6.1362569]
[1730477637414,0.1,2521.2,2521.1,6.21557728]
[1730477637776,0.1,2521.2,2521.1,6.1362569]
[1730477638183,0.1,2521.2,2521.1,2.1697369]
[1730477638425,0.1,2521.2,2521.1,0.0890727]
[1730477638791,0.1,2521.2,2520.9,3.96676]
[1730477638991,0.1,2521.2,2521.1,0.0890727]
[1730477640022,4.06636,2521.2,2521.1,0.0890727]
[1730477640208,0.1,2521.2,2521.1,0.0890727]
[1730477640534,0.1,2521.2,2520.7,3.96713]
[1730477640535,4.56642383,2521.2,2520.7,3.96713]
[1730477640834,3.96708,2520.8,2520.5,1.4717]
[1730477641078,3.96715,2520.7,2520.2,5.41355]
[1730477641576,3.96708,2520.8,2520.2,5.41355]
[1730477641577,7.93418,2520.8,2520.2,5.41355]
[1730477641741,3.96739,2520.6,2520.2,1.4457]
[1730477641949,1.5182,2520.7,2520.0,3.96812]
[1730477642190,3.96774,2520.4,2519.7,1.4884]
[1730477642334,3.96778,2520.3,2519.7,5.457]
[1730477642529,3.96797,2520.2,2519.7,5.457]
[1730477642829,3.9678,2520.3,2519.7,5.457]
[1730477643034,3.9678,2520.3,2519.7,1.4884]
[1730477643248,1.5182,2520.5,2520.0,3.96824]
[1730477643451,4.77828664,2520.6,2520.1,3.96808]
[1730477643729,4.77828664,2520.6,2520.1,3.96807]
[1730477643730,0.81096664,2520.5,2520.1,3.96807]
[1730477643930,0.81096664,2520.6,2520.4,3.96754]
[1730477644176,0.81096664,2520.8,2520.4,3.96754]
[1730477644348,0.81096664,2520.8,2520.5,3.96743]
[1730477644547,0.81096664,2520.8,2520.3,3.96771]
[1730477644754,0.81096664,2520.8,2520.4,4.05837186]
[1730477644990,4.77789664,2520.9,2520.4,4.05837186]
[1730477645191,2.1226399,2520.9,2520.4,8.02590186]
[1730477645688,2.1226399,2520.9,2520.4,4.05829186]
[1730477645870,3.96707,2520.8,2520.4,0.09076186]
[1730477646047,4.77803664,2520.8,2520.4,0.09076186]
[1730477646245,3.96707,2520.8,2520.4,0.09076186]
[1730477646445,4.77803664,2520.8,2520.4,0.09076186]
[1730477646648,3.96732,2520.6,2520.4,0.09076186]
[1730477646848,0.81096664,2520.8,2520.6,3.9673]
[1730477647044,1.21368363,2521.0,2520.8,3.96687]
[1730477647045,0.81096664,2521.0,2520.8,3.96687]
[1730477647277,0.81096664,2521.0,2520.7,5.53759444]
[1730477647490,0.81096664,2521.0,2520.9,4.0562296]
[1730477647797,0.81096664,2521.0,2520.9,0.0893996]
[1730477648145,0.81096664,2521.0,2520.5,3.96733]
[1730477648358,0.81096664,2521.0,2520.6,0.09021689]
[1730477648569,0.81096664,2521.0,2520.6,4.05750689]
[1730477648795,0.81096664,2521.0,2520.9,3.96683]
[1730477648946,1.71961232,2521.2,2521.0,3.96667]
[1730477648947,0.1,2521.2,2521.0,3.96667]
[1730477649146,0.1,2521.2,2521.1,0.08885485]
[1730477649784,0.1,2521.2,2521.1,4.05537485]
[1730477649996,0.1,2521.2,2521.1,4.60109885]
[1730477652494,0.1,2521.2,2521.1,0.08885485]
[1730477652863,0.1,2521.2,2521.1,4.05537485]
[1730477653265,0.1,2521.2,2521.1,0.08885485]
[1730477653583,6.80734363,2521.2,2521.1,0.08885485]
[1730477653905,7.21327232,2521.2,2521.1,0.08885485]
[1730477654052,3.96711,2520.8,2520.2,3.96791]
[1730477654251,4.77925507,2520.8,2520.2,3.96791]
[1730477654492,0.81214507,2520.7,2520.3,4.05848995]
[1730477654699,3.96739,2520.6,2520.3,0.09086995]
[1730477654859,3.96755,2520.5,2520.3,0.09086995]
[1730477655047,4.77969507,2520.5,2519.9,3.96826]
[1730477655251,4.77969507,2520.5,2520.4,0.09059743]
[1730477655500,5.92922534,2520.5,2519.9,4.04761812]
[1730477655651,4.77969507,2520.5,2519.9,4.04761812]
[1730477655963,0.81214507,2520.5,2520.0,0.09168763]
[1730477656512,4.77962507,2520.5,2520.0,0.09168763]
[1730477656682,0.81214507,2520.5,2520.0,0.09168763]
[1730477656867,7.93576,2520.3,2520.0,0.09168763]
[1730477657200,0.87479051,2520.2,2519.7,3.96863]
[1730477657492,0.87479051,2520.2,2520.1,0.09147284]
[1730477657655,0.87479051,2520.2,2519.8,3.96848]
[1730477657851,5.65499558,2520.2,2520.1,0.09147284]
[1730477658051,3.28733558,2520.2,2519.7,0.07936681]
[1730477658307,1.6004,2520.2,2520.1,0.08003874]
[1730477658453,6.38047507,2520.2,2519.7,3.96871]
[1730477658652,3.9678,2520.3,2520.1,4.04819098]
[1730477658653,0.81214507,2520.3,2520.1,4.04819098]
[1730477658854,6.34626507,2520.5,2519.9,3.96832]
[1730477659164,6.34626507,2520.5,2519.7,4.71587718]
[1730477659165,2.37874507,2520.5,2519.7,4.71587718]
[1730477659363,0.81214507,2520.6,2520.0,0.09182546]
[1730477659700,4.77936507,2520.7,2520.2,3.96793]
[1730477659878,0.81214507,2520.7,2520.3,3.96772]
[1730477660213,4.77930507,2520.7,2520.3,0.09100778]
[1730477660589,0.81214507,2520.7,2520.3,0.09100778]
[1730477661268,0.81214507,2520.7,2520.3,4.05877778]
[1730477661468,0.81214507,2520.7,2520.3,0.09100778]
[1730477661916,0.81214507,2520.6,2520.3,4.05877778]
[1730477662070,4.77929507,2520.7,2520.3,0.09100778]
[1730477662411,0.81214507,2520.7,2520.3,4.05870778]
[1730477662804,0.81214507,2520.7,2520.4,1.5983]
[1730477663005,0.81214507,2520.8,2520.4,1.5983]
[1730477663211,0.81214507,2520.8,2520.5,0.09046277]
[1730477663372,0.81214507,2520.9,2520.5,4.05791277]
[1730477663799,0.81214507,2520.9,2520.6,3.96726]
[1730477664009,0.81214507,2520.9,2520.5,4.05785277]
[1730477664189,0.81214507,2520.9,2520.7,0.09026006]
[1730477664378,0.81214507,2520.8,2520.6,0.07921594]
[1730477664574,0.81214507,2520.8,2520.5,3.96739]
[1730477665098,0.81214507,2520.8,2520.3,4.77029478]
[1730477665099,4.77900507,2520.9,2520.1,5.56627]
[1730477665281,2.26374507,2520.7,2520.1,5.56627]
[1730477665477,2.26374507,2520.7,2520.3,3.96771]
[1730477665677,1.4516,2520.7,2520.3,7.93537]
[1730477665919,1.4516,2520.7,2520.4,3.96757]
[1730477666132,0.81214507,2520.8,2520.4,3.96757]
[1730477666790,0.81214507,2520.8,2520.3,3.96766]
[1730477667128,0.81214507,2520.9,2520.6,3.96715]
[1730477667296,0.81214507,2521.0,2520.9,3.96683]
[1730477667637,1.21821761,2521.1,2520.8,7.93389]
[1730477667638,0.81214507,2521.1,2520.8,7.93389]
[1730477667784,0.81214507,2521.1,2520.9,3.96683]
[1730477667985,0.81214507,2521.1,2521.0,3.96667]
[1730477668429,0.81214507,2521.1,2520.9,3.96681]
[1730477668632,1.5648,2521.0,2520.8,3.96697]
[1730477668926,3.96691,2520.9,2520.2,1.5262]
[1730477669220,4.77946507,2520.6,2520.1,3.96807]
[1730477669421,0.81214507,2520.6,2520.0,3.96823]
[1730477669592,6.34448507,2520.5,2520.0,3.96823]
[1730477669793,0.81214507,2520.4,2520.1,3.96809]
[1730477670207,0.81214507,2520.4,2520.0,3.96824]
[1730477670949,0.81214507,2520.4,2520.1,3.96798]
[1730477671296,0.81214507,2520.4,2520.2,3.96786]
[1730477671493,0.81214507,2520.5,2519.9,1.5262]
[1730477671697,0.81214507,2520.5,2520.0,0.549474]
[1730477671889,0.81214507,2520.6,2520.5,3.96746]
[1730477672313,0.81214507,2520.8,2520.6,3.9673]
[1730477672491,0.81214507,2520.9,2520.6,3.9673]
[1730477672709,0.81214507,2520.9,2520.6,3.96728]
[1730477672905,0.81214507,2520.9,2520.5,3.96745]
[1730477673105,0.81214507,2520.8,2520.4,5.46231]
[1730477673394,0.81214507,2520.7,2520.4,5.46231]
[1730477673616,0.81214507,2520.7,2520.4,1.4947]
[1730477673819,0.81214507,2520.8,2520.5,3.96745]
[1730477674203,1.21821761,2520.9,2520.5,3.96745]
[1730477674204,0.81214507,2520.7,2520.5,3.96745]
[1730477674751,1.443,2520.6,2519.7,3.96869]
[1730477675040,2.25514507,2520.6,2519.8,1.58345398]
[1730477675338,0.81214507,2520.7,2520.5,3.96746]
[1730477675539,0.81214507,2520.7,2520.6,3.9673]
[1730477675703,0.81214507,2520.9,2520.7,3.9671]
[1730477676038,0.81214507,2521.0,2520.9,3.96683]
[1730477676500,0.91214507,2521.2,2520.9,0.87271587]
[1730477676701,0.1,2521.2,2521.1,3.96652]
[1730477678123,0.1,2521.2,2521.0,3.96666]
[1730477678330,0.1,2521.2,2521.1,3.96652]
[1730477678844,0.1,2521.2,2521.1,4.04584462]
[1730477679005,0.1,2521.2,2521.1,4.66067817]
[1730477679997,0.1,2521.2,2521.1,3.96652]
[1730477680397,0.1,2521.2,2520.9,3.96675]
[1730477680601,0.1,2521.2,2520.3,1.4319]
[1730477680803,0.1,2521.2,2520.0,3.96818]
[1730477680804,2.36274507,2521.0,2520.0,3.96818]
[1730477681049,3.96722,2520.7,2520.1,3.96809]
[1730477681252,4.77936507,2520.7,2520.3,3.96777]
[1730477681408,0.81214507,2520.7,2520.3,3.96771]
[1730477681739,4.77936507,2520.7,2520.2,3.96781]
[1730477681908,4.77936507,2520.7,2520.1,3.96794]
[1730477682242,4.77936507,2520.7,2520.1,3.96802]
[1730477682243,1.5506,2520.5,2520.1,3.96802]
[1730477683036,1.5506,2520.5,2520.2,3.9678]
[1730477683404,0.81214507,2520.6,2520.3,3.96764]
[1730477683723,4.77938507,2520.7,2520.2,3.96793]
[1730477684056,0.81214507,2520.6,2520.2,3.96793]
[1730477684613,1.96594534,2520.6,2520.1,3.96799]
[1730477684830,4.77961507,2520.5,2520.1,3.96799]
[1730477685035,3.9677,2520.4,2519.9,3.96837]
[1730477685205,0.81214507,2520.5,2519.7,3.96865]
[1730477685404,0.81214507,2520.5,2520.2,1.5705]
[1730477685614,0.81214507,2520.6,2520.2,5.53841]
[1730477685825,2.25914507,2520.4,2519.2,1.5749]
[1730477686044,2.25914507,2520.4,2519.4,3.96919]
[1730477686045,0.81214507,2520.3,2519.4,3.96919]
[1730477686230,4.77999507,2520.3,2519.8,3.96849]
[1730477686402,3.9681,2520.1,2519.7,3.9687]
[1730477686605,0.81214507,2520.2,2519.7,3.9687]
[1730477686827,1.55666634,2520.2,2519.8,3.96855]
[1730477687253,5.52463634,2520.2,2519.8,3.96855]
[1730477687435,1.55666634,2520.2,2519.8,3.96855]
[1730477687619,5.52461634,2520.2,2519.6,3.96875]
[1730477688028,1.55666634,2520.2,2519.2,1.5749]
[1730477688222,3.96809,2520.1,2519.6,3.96885]
[1730477689151,3.96809,2520.1,2519.6,3.96888]
[1730477689455,3.96826,2520.0,2519.7,0.07235317]
[1730477689609,4.78040507,2520.0,2519.5,3.9689]
[1730477689813,7.93666,2520.0,2519.8,0.08115876]
[1730477690024,7.93666,2520.0,2519.5,3.9689]
[1730477690025,3.96841,2519.9,2519.5,3.9689]
[1730477690424,1.80881134,2520.0,2519.5,3.9689]
[1730477690625,1.508,2519.8,2519.4,3.96919]
[1730477691134,5.47667,2519.8,2519.3,3.96928]
[1730477691549,3.96874,2519.7,2519.2,3.96951]
[1730477691709,0.81214507,2519.9,2519.6,3.96881]
[1730477691910,0.81214507,2520.0,2519.6,7.93761]
[1730477692140,2.32014507,2520.1,2519.7,3.96863]
[1730477692844,2.32014507,2520.1,2519.6,3.9688]
[1730477692845,5.4761,2520.1,2519.6,3.9688]
[1730477693050,0.81214507,2520.1,2519.7,3.96859]
[1730477693227,3.13229015,2520.4,2519.7,3.96859]
[1730477693228,4.78017507,2520.2,2519.7,3.96859]
[1730477693614,0.81214507,2520.2,2519.8,3.96847]
[1730477693856,4.78001507,2520.3,2519.7,3.96859]
[1730477694013,0.81072504,2520.4,2520.3,3.96778]
[1730477694216,0.81072504,2520.5,2520.3,4.761367]
[1730477694447,2.43251947,2521.0,2520.3,4.761367]
[1730477694448,1.21821761,2520.9,2520.6,1.5154]
[1730477694751,2.72621761,2522.1,2521.0,1.4938]
[1730477694963,1.508,2522.1,2521.4,4.71587718]
[1730477695114,1.21821761,2522.3,2522.0,4.71587718]
[1730477695321,1.21821761,2522.6,2522.0,4.71587718]
[1730477695651,1.21821761,2522.9,2522.3,6.20967718]
[1730477695954,1.4523,2523.2,2522.6,4.71587718]
[1730477696250,1.21821761,2523.4,2522.7,4.04882552]
[1730477696559,1.21821761,2523.6,2522.9,4.71587718]
[1730477696845,5.18081761,2523.6,2523.0,0.08403959]
[1730477697031,3.9625,2523.7,2523.0,0.08403959]
[1730477697275,3.9625,2523.7,2523.0,1.61383959]
[1730477697952,1.4567,2523.8,2523.2,4.71587718]
[1730477698260,2.35439781,2523.2,2522.7,4.71587718]
[1730477698573,6.55383957,2523.1,2522.2,5.40237]
[1730477698774,3.96367,2523.0,2522.2,5.40237]
[1730477698946,6.55383957,2523.1,2522.2,5.40237]
[1730477698947,1.0260629,2522.9,2522.2,5.40237]
[1730477699147,1.4863,2523.1,2522.4,3.96447]
[1730477699346,7.92572,2523.5,2522.6,7.92808]
[1730477699347,7.9257,2523.5,2522.6,7.92808]
[1730477699586,4.5885,2523.6,2522.8,3.96376]
[1730477699771,8.55109,2523.6,2522.8,7.92752]
[1730477699975,3.96277,2523.5,2522.9,0.792752]
[1730477700178,1.0260629,2523.5,2522.9,0.792752]
[1730477700692,4.9888429,2523.5,2522.8,3.96374]
[1730477700847,4.9888429,2523.5,2522.6,3.96413]
[1730477700848,4.9888429,2523.5,2522.6,3.96402]
[1730477701189,4.9888429,2523.5,2522.7,3.964]
[1730477701190,8.9516829,2523.5,2522.7,3.964]
[1730477701349,4.5885,2523.6,2522.7,3.96392]
[1730477701545,3.96276,2523.5,2522.7,7.92781]
[1730477701784,3.96276,2523.5,2522.8,0.792781]
[1730477701989,3.96276,2523.5,2522.7,3.96389]
[1730477702190,4.5885,2523.6,2522.9,3.9636]
[1730477702191,1.5885,2523.6,2522.9,3.9636]
[1730477702375,0.1232417,2523.9,2523.8,3.96227]
[1730477702561,0.1232417,2523.9,2523.8,5.48297]
[1730477702768,0.1232417,2523.9,2523.8,5.56220506]
[1730477703087,3.96096,2524.7,2523.9,3.96197]
[1730477703286,3.96032,2525.1,2524.3,3.96149]
[1730477703596,1.5885,2525.2,2524.5,3.96117]
[1730477703809,1.4624,2525.7,2524.6,1.63601165]
[1730477703968,0.1,2526.0,2524.7,1.63599874]
[1730477704154,0.1,2526.0,2525.2,3.95996]
[1730477704155,4.05886,2526.0,2525.2,3.95996]
[1730477704356,4.05886,2526.0,2524.8,4.49567766]
[1730477704357,0.1,2526.0,2524.8,4.49567766]
[1730477704587,4.05887,2526.0,2525.0,3.96038]
[1730477704806,4.05887,2526.0,2525.2,3.96001]
[1730477705011,4.05887,2526.0,2525.0,3.96031]
[1730477705207,4.05887,2526.0,2524.8,0.53507766]
[1730477705208,0.1,2526.0,2525.3,3.95977]
[1730477705498,0.1,2526.0,2525.5,3.9595]
[1730477705675,0.1,2526.0,2525.3,3.95983]
[1730477705861,0.1,2526.0,2525.9,3.95898]
[1730477706061,0.1,2526.0,2525.9,5.45658]
[1730477706264,0.1,2526.0,2525.9,6.56301151]
[1730477706463,0.1232417,2526.5,2525.9,6.56301151]
[1730477706464,0.1232417,2526.5,2525.9,2.05403151]
[1730477706689,0.1232417,2526.5,2526.0,4.03788964]
[1730477706899,0.1232417,2526.5,2526.0,0.07915964]
[1730477707202,0.1232417,2526.5,2525.9,2.05403151]
[1730477707383,0.1232417,2526.5,2526.0,0.07915588]
[1730477707790,0.1232417,2526.5,2525.9,5.45646]
[1730477708110,0.1232417,2526.5,2526.1,3.95866]
[1730477708313,0.1232417,2526.5,2526.4,6.004]
[1730477708464,0.1232417,2526.5,2526.4,11.24419618]
[1730477708665,3.95606,2527.8,2526.5,4.50796]
[1730477709007,3.95633,2527.6,2526.7,3.95763]
[1730477709211,3.95606,2527.8,2526.8,3.95756]
[1730477709506,3.95606,2527.8,2526.5,0.55]
[1730477709507,1.456,2527.9,2527.0,3.95714]
[1730477709663,3.95558,2528.1,2527.1,5.848604]
[1730477710069,0.035,2528.2,2527.2,0.55]
[1730477710272,0.035,2528.2,2527.6,2.0458]
[1730477710566,0.035,2528.2,2527.6,1.4958]
[1730477710915,0.035,2528.2,2527.3,3.95666]
[1730477710916,3.95612,2527.8,2527.3,0.07910144]
[1730477711068,0.395612,2527.7,2526.9,1.4958]
[1730477711268,3.95647,2527.6,2527.0,0.0791301]
[1730477711469,5.41179,2528.0,2527.0,0.0791301]
[1730477711671,3.95601,2527.8,2527.0,0.0791301]
[1730477711903,3.95579,2528.0,2526.9,5.45311]
[1730477712112,3.95617,2527.7,2527.0,0.55]
[1730477712277,3.95617,2527.7,2526.9,1.4958]
[1730477712278,0.791218,2527.6,2526.9,1.4958]
[1730477712476,3.95615,2527.8,2526.9,1.4958]
[1730477712477,3.95608,2527.8,2526.9,1.4958]
[1730477712811,3.95636,2527.6,2526.9,1.4958]
[1730477712970,3.95608,2527.8,2526.9,1.4958]
[1730477712971,3.95608,2527.8,2527.0,0.07912813]
[1730477713169,3.99048,2528.2,2527.0,0.55]
[1730477713407,0.035,2528.2,2527.5,3.95646]
[1730477713580,0.035,2528.2,2527.5,0.395646]
[1730477713971,0.035,2528.2,2527.6,0.07910861]
[1730477714171,0.035,2528.2,2527.6,3.95616]
[1730477714406,0.035,2528.2,2528.0,3.95563]
[1730477714580,0.035,2528.2,2527.9,1.5348]
[1730477714781,0.035,2528.2,2527.9,5.49062]
[1730477714982,0.035,2528.2,2527.9,1.5348]
[1730477715206,0.035,2528.2,2528.0,3.95568]
[1730477715516,3.95563,2528.1,2527.6,0.07909187]
[1730477715694,3.95563,2528.1,2527.3,3.95664]
[1730477715695,3.95558,2528.1,2527.3,3.95664]
[1730477715893,0.035,2528.2,2527.3,3.95664]
[1730477716212,0.035,2528.2,2527.8,1.4918]
[1730477716523,0.035,2528.2,2527.8,5.44779]
[1730477716675,0.035,2528.2,2528.1,3.95553]
[1730477716874,0.035,2528.2,2528.0,3.95568]
[1730477717177,0.035,2528.2,2528.1,4.50553]
[1730477717711,0.035,2528.2,2527.8,5.992521]
[1730477717890,0.035,2528.2,2527.9,0.55]
[1730477718209,0.035,2528.2,2527.8,1.4918]
[1730477718410,0.035,2528.2,2527.9,0.07910357]
[1730477718613,0.035,2528.2,2527.8,1.4918]
[1730477718835,3.99052,2528.2,2527.8,1.4918]
[1730477718976,0.035,2528.2,2527.8,1.4918]
[1730477719611,0.035,2528.2,2528.0,3.95556]
[1730477720022,0.035,2528.2,2528.1,4.50553]
[1730477720485,3.95433,2528.9,2528.2,3.95538]
[1730477720682,3.95433,2528.9,2528.3,1.4677]
[1730477720881,6.07310875,2529.0,2528.3,1.4677]